bitfinex/quotes_SOLUSD_20240703
["timestamp","ask_amount","ask_price","bid_price","bid_amount"]
[1719965812977,13.6,154.41,154.36,13.26]
[1719965813374,0.34,154.41,154.36,13.26]
[1719965813575,13.6,154.41,154.36,13.26]
[1719965815704,13.6,154.41,154.35,13.26]
[1719965816700,13.26,154.4,154.33,16.0755]
[1719965816891,13.26,154.4,154.29,15.8548]
[1719965817189,13.26,154.4,154.34,13.26]
[1719965817507,13.6,154.39,154.34,13.26]
[1719965817690,13.43,154.39,154.34,13.26]
[1719965818190,13.43,154.39,154.29,15.8548]
[1719965818191,13.26,154.37,154.29,15.8548]
[1719965818386,13.26,154.37,154.32,13.26]
[1719965818591,13.26,154.36,154.29,15.8548]
[1719965818793,13.26,154.36,154.31,13.26]
[1719965819003,13.26,154.37,154.32,13.26]
[1719965819689,13.26,154.37,154.29,15.8548]
[1719965820005,13.26,154.37,154.32,13.26]
[1719965821506,13.7341,154.38,154.29,15.8548]
[1719965821507,13.26,154.36,154.31,13.26]
[1719965821799,13.26,154.34,154.25,16.5524]
[1719965822004,13.26,154.34,154.28,13.26]
[1719965822703,0.34,154.35,154.28,13.26]
[1719965822880,0.34,154.35,154.3,13.26]
[1719965823405,0.17,154.35,154.3,13.26]
[1719965823592,13.43,154.35,154.3,13.26]
[1719965823794,0.17,154.35,154.31,13.26]
[1719965825083,6.5461,154.41,154.34,13.26]
[1719965825283,6.5461,154.41,154.38,13.26]
[1719965825510,6.5461,154.41,154.37,13.26]
[1719965826006,6.5461,154.41,154.32,53.04]
[1719965826007,19.8061,154.41,154.36,13.26]
[1719965826713,13.26,154.4,154.35,13.26]
[1719965827003,13.26,154.37,154.27,16.4544]
[1719965827211,13.26,154.37,154.32,13.26]
[1719965827418,0.17,154.36,154.32,13.26]
[1719965827589,0.17,154.36,154.27,16.4544]
[1719965827789,0.17,154.36,154.32,13.26]
[1719965828392,0.17,154.36,154.33,13.26]
[1719965828592,0.34,154.37,154.34,13.26]
[1719965828806,0.34,154.36,154.34,13.26]
[1719965829019,0.34,154.38,154.34,13.26]
[1719965829305,13.26,154.39,154.34,13.26]
[1719965831111,13.6,154.38,154.33,13.26]
[1719965831416,0.34,154.37,154.33,13.26]
[1719965832702,0.34,154.38,154.33,13.26]
[1719965833808,13.26,154.37,154.27,16.4544]
[1719965833999,13.43,154.36,154.31,13.26]
[1719965834317,0.34,154.35,154.27,16.4544]
[1719965834617,0.34,154.35,154.31,13.26]
[1719965835106,0.34,154.35,154.32,13.26]
[1719965835321,0.34,154.36,154.32,13.26]
[1719965836297,6.5461,154.41,154.27,16.4544]
[1719965836504,13.26,154.39,154.27,16.4544]
[1719965836699,6.5461,154.41,154.27,16.4544]
[1719965836700,13.26,154.4,154.35,13.26]
[1719965837109,13.26,154.39,154.34,13.26]
[1719965837995,0.34,154.38,154.34,13.26]
[1719965839202,13.26,154.4,154.35,13.26]
[1719965839519,19.8061,154.41,154.36,13.26]
[1719965839718,0.17,154.4,154.36,13.26]
[1719965839965,6.5461,154.41,154.37,13.26]
[1719965841518,26.8241,154.42,154.37,13.26]
[1719965841911,6.545,154.45,154.32,29.0076]
[1719965841912,6.545,154.45,154.39,13.26]
[1719965842114,19.805,154.45,154.4,13.26]
[1719965843017,6.545,154.45,154.4,13.26]
[1719965843427,19.805,154.45,154.4,13.26]
[1719965844036,6.545,154.45,154.41,13.26]
[1719965846135,19.805,154.45,154.4,13.26]
[1719965846939,6.545,154.45,154.41,13.26]
[1719965847131,19.805,154.45,154.4,13.26]
[1719965849037,6.545,154.45,154.4,13.26]
[1719965849422,6.545,154.45,154.41,13.26]
[1719965850336,1.1718274,154.46,154.42,13.26]
[1719965850540,0.8318274,154.46,154.42,13.26]
[1719965851642,0.8318274,154.46,154.32,68.7876]
[1719965851838,0.8318274,154.46,154.41,13.26]
[1719965852333,13.6,154.45,154.4,13.26]
[1719965852535,13.26,154.45,154.4,13.26]
[1719965852723,0.8318274,154.46,154.44,13.26]
[1719965852912,0.8318274,154.46,154.45,29.4316]
[1719965853120,6.7599609,154.55,154.45,29.7716]
[1719965853430,33.4309,154.58,154.53,13.26]
[1719965853824,20.1709,154.58,154.47,29.68]
[1719965854128,19.6709,154.58,154.47,29.68]
[1719965854735,19.6709,154.58,154.48,1.29427651]
[1719965854915,19.6709,154.58,154.49,1.29435248]
[1719965855116,19.6709,154.58,154.47,29.68]
[1719965856328,0.17,154.57,154.47,29.68]
[1719965857243,0.34,154.57,154.47,29.68]
[1719965858437,13.5641,154.6,154.47,29.68]
[1719965860230,0.17,154.59,154.47,29.68]
[1719965860426,0.34,154.59,154.47,29.68]
[1719965861345,6.1665,154.58,154.47,29.68]
[1719965861548,0.34,154.57,154.47,29.68]
[1719965863937,0.34,154.57,154.45,16.1716]
[1719965864149,0.34,154.57,154.46,0.6098239]
[1719965864448,0.34,154.57,154.47,0.61014389]
[1719965864623,0.34,154.57,154.47,0.86324043]
[1719965867625,0.34,154.57,154.45,16.1716]
[1719965869141,13.5641,154.56,154.44,29.68]
[1719965869333,0.34,154.55,154.41,46.3339]
[1719965869533,6.0491,154.54,154.41,46.3339]
[1719965869734,0.34,154.53,154.41,46.3339]
[1719965871747,6.0491,154.54,154.42,0.17]
[1719965872444,6.0491,154.54,154.43,29.68]
[1719965872639,6.0491,154.54,154.42,0.34]
[1719965872843,6.0491,154.54,154.43,29.68]
[1719965873050,6.0491,154.54,154.44,0.34]
[1719965874548,6.0491,154.54,154.46,29.68]
[1719965875840,6.0491,154.54,154.51,13.19]
[1719965877472,6.0491,154.54,154.44,0.34]
[1719965877752,6.0491,154.54,154.51,13.19]
[1719965877935,6.0491,154.54,154.5,13.19]
[1719965880050,6.0491,154.54,154.41,16.6539]
[1719965880227,6.0491,154.54,154.5,13.19]
[1719965880649,19.2391,154.54,154.49,13.19]
[1719965880952,6.0491,154.54,154.5,13.19]
[1719965881355,6.0491,154.54,154.51,13.19]
[1719965882548,13.5641,154.56,154.52,13.19]
[1719965882759,13.5641,154.56,154.53,13.19]
[1719965884358,6.0192,154.58,154.54,13.19]
[1719965885356,0.8318274,154.61,154.48,52.76]
[1719965885538,0.8318274,154.61,154.58,13.19]
[1719965885730,0.8318274,154.61,154.59,13.19]
[1719965885930,0.8318274,154.61,154.49,19.85]
[1719965885931,0.8318274,154.61,154.6,13.19]
[1719965886151,0.8318274,154.61,154.54,15.5944]
[1719965886531,0.8318274,154.61,154.59,13.19]
[1719965887857,0.8318274,154.61,154.58,13.19]
[1719965889977,0.8318274,154.61,154.54,15.5944]
[1719965890171,0.8318274,154.61,154.58,13.19]
[1719965890458,0.8318274,154.61,154.57,13.19]
[1719965892145,14.0218274,154.61,154.56,13.19]
[1719965893854,0.8318274,154.61,154.57,13.19]
[1719965896974,14.0218274,154.61,154.57,13.19]
[1719965898469,14.0218274,154.61,154.56,13.19]
[1719965900260,14.0218274,154.61,154.5,16.4406]
[1719965900464,13.19,154.6,154.55,13.19]
[1719965901174,13.19,154.59,154.55,13.19]
[1719965901959,19.7817,154.58,154.48,6.3548]
[1719965902165,0.17,154.57,154.52,13.19]
[1719965902368,13.19,154.53,154.46,276.5678]
[1719965902566,13.19,154.53,154.49,13.19]
[1719965903362,19.7817,154.52,154.4,16.4678]
[1719965903677,13.19,154.49,154.44,13.19]
[1719965904167,13.19,154.49,154.4,16.4678]
[1719965904359,13.19,154.49,154.44,13.19]
[1719965904755,19.7817,154.52,154.4,69.2278]
[1719965904968,13.19,154.49,154.45,13.19]
[1719965905761,19.7817,154.52,154.41,1.2947669]
[1719965905959,0.34,154.51,154.4,16.4678]
[1719965906683,0.34,154.51,154.41,1.29478695]
[1719965906888,0.34,154.51,154.4,16.4678]
[1719965907176,0.34,154.51,154.41,1.29480574]
[1719965907981,0.34,154.51,154.4,16.4678]
[1719965908363,0.34,154.51,154.41,0.73388634]
[1719965908970,0.34,154.51,154.4,16.4678]
[1719965909386,0.34,154.51,154.41,1.29487668]
[1719965912169,20.34,154.51,154.37,16.136]
[1719965912686,0.34,154.51,154.37,16.136]
[1719965912887,20.34,154.51,154.37,16.136]
[1719965913084,0.34,154.51,154.37,16.136]
[1719965913287,0.34,154.51,154.38,26.75]
[1719965913786,0.34,154.51,154.38,26.58]
[1719965913989,0.34,154.51,154.38,26.41]
[1719965916489,6.1538,154.5,154.38,26.41]
[1719965916680,0.34,154.49,154.38,26.41]
[1719965924512,6.1538,154.5,154.41,26.41]
[1719965924693,6.1538,154.5,154.42,0.17]
[1719965925287,6.1538,154.5,154.41,26.41]
[1719965926101,13.5641,154.52,154.41,32.8616]
[1719965926308,13.5641,154.52,154.43,16.2069]
[1719965926509,13.5641,154.52,154.45,26.41]
[1719965927703,13.5641,154.52,154.43,16.2069]
[1719965927704,13.5641,154.52,154.49,13.2]
[1719965941027,26.7641,154.52,154.43,16.2069]
[1719965941224,26.7641,154.52,154.47,13.2]
[1719965941734,26.7641,154.52,154.41,6.4516]
[1719965941926,26.7641,154.52,154.47,13.2]
[1719965945537,13.5641,154.52,154.48,13.2]
[1719965947330,6.2346,154.54,154.49,13.2]
[1719965947530,6.2346,154.54,154.5,13.2]
[1719965949019,6.2346,154.54,154.49,13.2]
[1719965950136,19.4346,154.54,154.49,13.2]
[1719965950444,6.2346,154.54,154.49,13.2]
[1719965950637,19.4346,154.54,154.49,13.2]
[1719965951148,13.2,154.53,154.48,13.2]
[1719965954759,13.2,154.53,154.44,15.8693]
[1719965954960,13.2,154.53,154.48,13.2]
[1719965955136,13.2,154.53,154.44,15.8693]
[1719965955330,13.2,154.52,154.44,15.8693]
[1719965955539,13.2,154.52,154.48,13.2]
[1719965955766,6.2346,154.54,154.48,13.2]
[1719965955982,13.2,154.51,154.41,6.4516]
[1719965956138,13.2,154.51,154.47,13.2]
[1719965956340,0.17,154.53,154.47,13.2]
[1719965956631,13.2,154.51,154.47,13.2]
[1719965958746,13.2,154.51,154.41,6.4516]
[1719965959065,13.2,154.5,154.45,13.2]
[1719965960162,13.2,154.51,154.46,13.2]
[1719965962560,0.34,154.53,154.46,13.2]
[1719965962771,13.2,154.52,154.47,13.2]
[1719965962970,0.34,154.53,154.47,13.2]
[1719965963286,13.2,154.52,154.47,13.2]
[1719965964881,13.2,154.52,154.48,13.2]
[1719965966976,13.54,154.53,154.48,13.2]
[1719965971778,13.2,154.52,154.41,6.4516]
[1719965971989,13.54,154.51,154.41,6.4516]
[1719965972175,13.2,154.51,154.46,13.2]
[1719965972577,13.2,154.5,154.46,13.2]
[1719965973217,13.54,154.51,154.46,13.2]
[1719965976612,13.2,154.51,154.46,13.2]
[1719965978301,6.2346,154.54,154.46,13.2]
[1719965978503,13.2,154.51,154.46,13.2]
[1719965979823,0.17,154.5,154.46,13.2]
[1719965980007,0.34,154.5,154.46,13.2]
[1719965980203,13.54,154.5,154.46,13.2]
[1719965980513,13.54,154.5,154.45,13.2]
[1719965981526,13.2,154.48,154.41,6.4516]
[1719965981710,13.2,154.48,154.43,13.2]
[1719965981903,13.2,154.48,154.41,6.4516]
[1719965982113,13.2,154.47,154.42,13.2]
[1719965982496,0.34,154.5,154.42,13.2]
[1719965982707,13.2,154.47,154.42,13.2]
[1719965985512,0.34,154.5,154.4,15.2813]
[1719965985720,0.34,154.5,154.42,13.2]
[1719965985721,13.2,154.47,154.42,13.2]
[1719965985911,13.2,154.48,154.43,13.2]
[1719965986110,13.2,154.47,154.43,13.2]
[1719965986714,0.34,154.5,154.43,13.2]
[1719965986906,13.2,154.47,154.43,13.2]
[1719965987826,13.2,154.47,154.42,13.2]
[1719965991349,0.34,154.5,154.4,15.2813]
[1719965991533,13.2,154.45,154.4,28.4813]
[1719965993025,13.2,154.45,154.41,13.2]
[1719965993902,13.2,154.45,154.4,15.2813]
[1719965994175,13.2,154.45,154.4,28.4813]
[1719965995455,13.2,154.44,154.4,15.2813]
[1719965995663,13.2,154.44,154.4,28.4813]
[1719965995870,13.2,154.43,154.4,15.2813]
[1719965996172,13.2,154.43,154.38,13.2]
[1719965996341,6.4177,154.49,154.38,13.2]
[1719965996545,13.2,154.43,154.38,13.2]
[1719965997365,13.2,154.42,154.37,19.628]
[1719965998466,13.2,154.41,154.36,29.0848]
[1719965999274,72.65,154.48,154.36,29.0848]
[1719965999465,13.2,154.41,154.36,29.0848]
[1719966000869,13.2,154.41,154.37,13.2]
[1719966001649,13.2,154.42,154.37,13.2]
[1719966001855,13.2,154.41,154.36,15.8848]
[1719966002075,13.2,154.4,154.36,15.8848]
[1719966002651,6.4177,154.49,154.39,13.2]
[1719966002956,100.0,154.55,154.36,15.8848]
[1719966002957,6.0069,154.55,154.47,13.2]
[1719966003173,13.2,154.52,154.47,13.2]
[1719966003375,6.0069,154.55,154.48,13.2]
[1719966003577,13.2,154.53,154.48,13.2]
[1719966005674,0.34,154.54,154.47,13.2]
[1719966005878,13.2,154.51,154.47,1.28928657]
[1719966006084,13.2,154.51,154.46,16.0619]
[1719966006267,13.2,154.51,154.47,13.2]
[1719966006970,13.2,154.51,154.46,29.2619]
[1719966007887,0.34,154.54,154.42,21.8615]
[1719966008058,13.2,154.5,154.45,13.2]
[1719966010381,0.34,154.54,154.46,13.2]
[1719966010697,0.34,154.54,154.47,13.2]
[1719966010698,13.2,154.52,154.47,13.2]
[1719966010990,0.34,154.54,154.47,13.2]
[1719966011171,13.2,154.52,154.47,13.2]
[1719966011363,6.0069,154.55,154.48,13.2]
[1719966011567,6.0069,154.55,154.49,13.2]
[1719966011772,13.2,154.54,154.49,13.2]
[1719966012471,19.2069,154.55,154.5,13.2]
[1719966012783,6.0069,154.55,154.5,13.2]
[1719966013085,19.2069,154.55,154.5,13.2]
[1719966013973,13.2,154.55,154.5,13.2]
[1719966014860,13.2,154.54,154.42,21.8615]
[1719966015064,19.2188877,154.56,154.48,13.2]
[1719966015065,13.2,154.53,154.48,13.2]
[1719966016791,0.17,154.55,154.48,13.2]
[1719966017090,13.2,154.53,154.43,0.34]
[1719966017285,13.2,154.53,154.48,13.2]
[1719966017584,0.34,154.55,154.49,13.2]
[1719966017788,13.2,154.54,154.49,13.2]
[1719966020291,0.34,154.53,154.49,13.2]
[1719966020466,13.54,154.53,154.48,13.2]
[1719966022066,13.2,154.52,154.48,13.2]
[1719966022271,13.2,154.52,154.42,21.8615]
[1719966022473,13.2,154.52,154.47,13.2]
[1719966022688,0.34,154.53,154.47,13.2]
[1719966022898,13.2,154.52,154.47,13.2]
[1719966024278,18.8788877,154.56,154.49,13.2]
[1719966024495,13.2,154.54,154.49,13.2]
[1719966024867,18.8788877,154.56,154.49,13.2]
[1719966025063,6.0016,154.59,154.5,1.29439057]
[1719966025293,13.2,154.58,154.53,13.2]
[1719966026695,13.2,154.57,154.52,13.2]
[1719966029471,13.2,154.57,154.48,6.0149]
[1719966029672,0.34,154.56,154.52,13.2]
[1719966030092,13.54,154.56,154.51,13.2]
[1719966030870,0.34,154.56,154.47,16.5455]
[1719966031071,13.2,154.53,154.48,13.2]
[1719966031281,13.2,154.53,154.47,29.7455]
[1719966031784,13.2,154.52,154.47,29.7455]
[1719966032291,13.2,154.5,154.43,15.2038]
[1719966032480,13.2,154.49,154.44,13.2]
[1719966033090,0.34,154.5,154.44,13.2]
[1719966033395,13.2,154.49,154.44,13.2]
[1719966033594,13.54,154.5,154.45,13.2]
[1719966035198,13.2,154.49,154.43,15.2038]
[1719966035378,13.2,154.48,154.43,15.2038]
[1719966035583,13.2,154.47,154.4,6.5721]
[1719966035988,13.2,154.47,154.42,13.2]
[1719966036191,13.2,154.46,154.41,13.2]
[1719966036490,13.2,154.47,154.42,13.2]
[1719966037003,13.2,154.46,154.41,13.2]
[1719966037305,13.2,154.46,154.42,13.2]
[1719966037505,0.34,154.48,154.42,13.2]
[1719966037798,13.54,154.48,154.43,14.49496734]
[1719966037979,13.54,154.48,154.43,13.2]
[1719966038984,13.2,154.47,154.42,13.2]
[1719966039186,0.34,154.48,154.39,16.2537]
[1719966039387,13.2,154.46,154.41,13.2]
[1719966047286,0.34,154.48,154.41,13.2]
[1719966047613,13.2,154.46,154.41,13.2]
[1719966050308,13.2,154.43,154.39,16.2537]
[1719966050690,0.34,154.42,154.36,6.0949]
[1719966050890,13.37,154.42,154.37,13.2]
[1719966052817,13.2,154.41,154.35,15.5659]
[1719966053122,13.2,154.41,154.37,13.2]
[1719966053290,13.2,154.44,154.39,13.2]
[1719966053692,13.2,154.44,154.36,1.29535733]
[1719966053997,13.2,154.44,154.39,13.2]
[1719966054303,5.20622626,154.51,154.43,13.2]
[1719966054506,13.2,154.52,154.47,13.2]
[1719966054717,13.2,154.52,154.44,1.29477772]
[1719966054718,19.5727,154.56,154.48,13.2]
[1719966055017,6.0086,154.56,154.5,13.2]
[1719966055214,13.2,154.55,154.5,13.2]
[1719966055418,13.2,154.55,154.47,16.4314]
[1719966055624,13.2,154.55,154.5,13.2]
[1719966055919,6.0086,154.56,154.47,16.4314]
[1719966056216,0.17,154.55,154.47,16.4314]
[1719966056417,0.34,154.55,154.47,16.4314]
[1719966061120,19.82,154.6,154.48,0.8615602]
[1719966061300,0.34,154.59,154.49,0.86268889]
[1719966061499,0.34,154.59,154.5,1.29429044]
[1719966061811,0.34,154.59,154.48,1.29429044]
[1719966062018,0.34,154.59,154.47,49.2768]
[1719966064025,0.34,154.59,154.48,1.29423099]
[1719966064212,0.34,154.59,154.49,1.29423099]
[1719966065324,0.34,154.59,154.47,49.2768]
[1719966066331,0.8318274,154.61,154.51,26.39]
[1719966066504,0.8318274,154.61,154.52,0.39090996]
[1719966066823,0.8318274,154.61,154.52,0.93980222]
[1719966067025,0.8318274,154.61,154.53,15.4839]
[1719966067226,0.8318274,154.61,154.54,7.38255479]
[1719966067411,0.8318274,154.61,154.55,1.29367107]
[1719966069423,0.8318274,154.61,154.53,41.8739]
[1719966073013,0.8318274,154.61,154.54,1.29380106]
[1719966074228,0.8318274,154.61,154.53,41.8739]
[1719966075311,0.34,154.6,154.53,41.8739]
[1719966075832,0.34,154.6,154.57,14.83]
[1719966076129,0.34,154.6,154.53,15.4839]
[1719966076524,0.34,154.6,154.56,14.83]
[1719966076946,0.34,154.6,154.57,14.83]
[1719966077240,0.34,154.6,154.58,14.83]
[1719966078435,0.8318274,154.61,154.58,14.83]
[1719966078822,0.8318274,154.61,154.6,14.83]
[1719966082139,0.8318274,154.61,154.53,15.4839]
[1719966082346,0.8318274,154.61,154.58,14.83]
[1719966082528,0.8318274,154.61,154.6,14.83]
[1719966085942,0.8318274,154.61,154.57,29.64]
[1719966090742,0.8318274,154.61,154.59,15.663]
[1719966091056,0.8318274,154.61,154.6,1.2932862]
[1719966091259,0.8318274,154.61,154.59,15.663]
[1719966095553,0.8318274,154.61,154.6,1.08258152]
[1719966095727,0.8318274,154.61,154.59,15.663]
[1719966095929,0.8318274,154.61,154.6,1.08888821]
[1719966096751,0.8318274,154.61,154.59,15.663]
[1719966097161,0.8318274,154.61,154.6,1.29335404]
[1719966102176,0.8318274,154.61,154.59,15.663]
[1719966102349,0.8318274,154.61,154.6,1.29335995]
[1719966102555,0.8318274,154.61,154.57,29.64]
[1719966103059,0.8318274,154.61,154.58,1.29348811]
[1719966104154,0.8318274,154.61,154.6,29.64]
[1719966105672,0.8318274,154.61,154.59,29.64]
[1719966105872,0.8318274,154.61,154.6,14.82]
[1719966112880,0.8318274,154.61,154.6,29.8739]
[1719966115381,0.8318274,154.61,154.6,14.82]
[1719966122581,0.8318274,154.61,154.56,15.876]
[1719966122782,0.8318274,154.61,154.6,14.82]
[1719966130673,0.8318274,154.61,154.53,64.50695794]
[1719966130873,0.8318274,154.61,154.6,14.82]
[1719966144785,0.8318274,154.61,154.53,75.2485]
[1719966144988,0.8318274,154.61,154.6,14.82]
[1719966147503,0.8318274,154.61,154.53,75.2485]
[1719966147714,0.8318274,154.61,154.6,14.82]
[1719966156192,0.8318274,154.61,154.53,75.2485]
[1719966156519,0.8318274,154.61,154.6,14.82]
[1719966157015,0.8318274,154.61,154.59,14.82]
[1719966157907,0.8318274,154.61,154.53,75.2485]
[1719966158114,0.8318274,154.61,154.59,14.82]
[1719966160521,0.8318274,154.61,154.53,75.2485]
[1719966160734,0.34,154.6,154.58,14.82]
[1719966160903,0.34,154.6,154.48,16.4117]
[1719966161227,58.23,154.6,154.49,1.29418614]
[1719966161518,12.89,154.59,154.55,12.89]
[1719966161824,45.34,154.58,154.54,12.89]
[1719966162320,45.34,154.58,154.48,67.9717]
[1719966162526,45.34,154.58,154.54,12.89]
[1719966163102,45.34,154.58,154.48,67.9717]
[1719966163303,45.34,154.58,154.55,12.89]
[1719966164712,0.34,154.58,154.55,12.89]
[1719966164910,0.34,154.58,154.56,12.89]
[1719966165113,45.34,154.59,154.56,12.89]
[1719966165623,45.34,154.59,154.57,12.89]
[1719966167321,7.2446274,154.61,154.48,67.9717]
[1719966167322,7.2446274,154.61,154.58,12.89]
[1719966167512,7.2446274,154.61,154.6,12.89]
[1719966167716,7.2446274,154.61,154.59,12.89]
[1719966168403,0.8318274,154.61,154.6,12.89]
[1719966185614,0.8318274,154.61,154.56,51.56]
[1719966185825,0.8318274,154.61,154.6,12.89]
[1719966221569,0.8318274,154.61,154.55,22.7759]
[1719966221868,0.8318274,154.61,154.6,12.89]
[1719966223948,0.8318274,154.61,154.6,12.88]
[1719966277633,0.8318274,154.61,154.55,16.6438]
[1719966277804,0.8318274,154.61,154.6,12.88]
[1719966289315,1.1718274,154.61,154.55,16.6438]
[1719966289532,0.34,154.6,154.51,22.5439]
[1719966289729,0.34,154.6,154.59,12.88]
[1719966290723,0.8318274,154.61,154.59,12.88]
[1719966290929,0.8318274,154.61,154.6,12.88]
[1719966295860,1.1718274,154.61,154.6,12.88]
[1719966296522,1.1718274,154.61,154.52,1.29374963]
[1719966296722,1.1718274,154.61,154.6,12.88]
[1719966301147,1.1718274,154.61,154.6,12.88]
[1719966302651,1.1718274,154.61,154.51,22.5439]
[1719966302652,14.0518274,154.61,154.51,22.5439]
[1719966302860,45.34,154.6,154.56,12.88]
[1719966303631,45.34,154.6,154.51,22.5439]
[1719966303632,45.34,154.6,154.57,12.88]
[1719966303939,0.34,154.6,154.57,12.88]
[1719966307462,0.34,154.6,154.51,16.4773]
[1719966307662,33.22,154.6,154.51,16.4773]
[1719966307952,45.0,154.59,154.48,6.5662]
[1719966308253,13.22,154.58,154.53,12.88]
[1719966308560,45.0,154.57,154.53,12.88]
[1719966308735,0.34,154.56,154.53,12.88]
[1719966309354,0.34,154.56,154.54,12.88]
[1719966310056,0.34,154.56,154.47,16.6624]
[1719966310242,0.34,154.56,154.52,12.88]
[1719966310644,6.6872,154.56,154.48,51.52]
[1719966310859,45.0,154.55,154.52,12.88]
[1719966311066,0.34,154.54,154.52,12.88]
[1719966311362,0.34,154.54,154.44,6.4583]
[1719966311749,0.34,154.54,154.5,12.88]
[1719966315844,0.34,154.54,154.52,12.88]
[1719966316153,0.34,154.54,154.44,6.4583]
[1719966316154,0.34,154.54,154.51,12.88]
[1719966317560,0.34,154.54,154.44,6.4583]
[1719966317766,12.88,154.53,154.43,16.0989]
[1719966317966,65.34,154.52,154.48,12.88]
[1719966318160,45.34,154.52,154.43,16.0989]
[1719966318362,58.9041,154.52,154.48,12.88]
[1719966319960,58.9041,154.52,154.49,12.88]
[1719966320151,58.9041,154.52,154.43,17.39368377]
[1719966320383,58.9041,154.52,154.48,12.88]
[1719966320561,58.9041,154.52,154.43,16.0989]
[1719966320871,58.9041,154.52,154.48,12.88]
[1719966321365,58.9041,154.52,154.43,17.39370583]
[1719966321666,58.9041,154.52,154.49,12.88]
[1719966321868,58.9041,154.52,154.4,6.6569]
[1719966322056,19.1966,154.51,154.4,58.1769]
[1719966322368,58.22,154.5,154.45,12.88]
[1719966323471,45.34,154.5,154.46,12.88]
[1719966323853,45.34,154.5,154.47,12.88]
[1719966325275,45.34,154.5,154.49,12.88]
[1719966327055,19.7307,154.56,154.49,12.88]
[1719966327260,20.0,154.55,154.53,12.72250986]
[1719966328071,19.7307,154.56,154.53,12.72250986]
[1719966328248,7.17390525,154.58,154.55,12.88]
[1719966329654,7.17390525,154.58,154.54,12.88]
[1719966330375,0.17,154.57,154.54,12.88]
[1719966330566,45.34,154.57,154.54,12.88]
[1719966330773,25.32101315,154.6,154.55,12.88]
[1719966330774,32.9714,154.6,154.55,12.88]
[1719966330977,20.0,154.59,154.55,12.88]
[1719966331157,20.0,154.59,154.48,51.52]
[1719966331361,20.0,154.59,154.55,12.88]
[1719966332176,45.0,154.58,154.55,12.88]
[1719966332481,0.17,154.57,154.55,12.88]
[1719966339490,0.17,154.57,154.46,6.4574]
[1719966339797,0.17,154.57,154.54,12.88]
[1719966340088,0.17,154.57,154.55,12.88]
[1719966346973,0.17,154.57,154.54,12.88]
[1719966348372,13.05,154.57,154.52,12.88]
[1719966348696,45.17,154.56,154.52,12.88]